fUST/lending_fUST_20260203
["ID","MTS","AMOUNT","RATE_DAILY","PERIOD"]
[404391240,1770093190573,2000.0,0.00014916,2]
[404391241,1770093190635,500.0,0.00015464,2]
[404391242,1770093191220,500.19982092,0.00013273,2]
[404391243,1770093191699,619.58988389,0.00013273,2]
[404391244,1770093198208,1367.95536055,0.0001746,2]
[404391245,1770093198229,8632.04463945,0.0001746,2]
[404391246,1770093200942,500.0,0.00013273,2]
[404391247,1770093200996,561.22050956,0.00013821,2]
[404391248,1770093233485,306.74485099,0.0001746,2]
[404391249,1770093233510,9693.25514901,0.0001746,2]
[404391250,1770093244315,306.75485099,0.00013699,2]
[404391251,1770093244335,193.24514901,0.00013699,2]
[404391252,1770093244372,671.30504098,0.00014247,2]
[404391253,1770093244631,500.0,0.00013273,2]
[404391254,1770093244656,1501.84841022,0.00014916,2]
[404391255,1770093244693,1000.0,0.00013821,2]
[404391256,1770093244747,1500.0,0.00014368,2]
[404391257,1770093245140,500.0,0.00013699,2]
[404391258,1770093245614,4133.61139979,0.0001746,2]
[404391259,1770093245640,5866.38860021,0.0001746,2]
[404391260,1770093254098,500.0,0.00013273,2]
[404391261,1770093261886,3633.62139979,0.0001746,2]
[404391262,1770093261909,6366.37860021,0.0001746,2]
[404391264,1770093283491,3633.63139979,0.0001746,2]
[404391265,1770093283511,6366.36860021,0.0001746,2]
[404391266,1770093299298,3633.64139979,0.0001746,2]
[404391267,1770093299319,6366.35860021,0.0001746,2]
[404391269,1770093307085,500.0,0.00013699,2]
[404391270,1770093307112,1000.0,0.00014247,2]
[404391271,1770093307189,501.61509767,0.00014795,2]
[404391272,1770093307327,422.13878715,0.00013699,2]
[404391273,1770093307355,500.0,0.00013699,2]
[404391274,1770093307384,709.89751497,0.00014247,2]
[404391275,1770093307408,292.19079282,0.00014247,2]
[404391276,1770093307940,500.0,0.00013273,2]
[404391277,1770093307993,1000.0,0.00013821,2]
[404391278,1770093308058,967.52166678,0.00014368,2]
[404391279,1770093313849,-300.0,0.00017999,2]
[404391280,1770093313877,-886.0,0.00017999,2]
[404391281,1770093315358,7628.01,0.0001746,2]
[404391282,1770093315381,2371.99,0.0001746,2]
[404391283,1770093347304,-0.01,0.00017999,2]
[404391284,1770093347411,10000.0,0.0001746,2]
[404391285,1770093347576,-0.02,0.00017999,2]
[404391286,1770093347920,-0.04,0.00017999,2]
[404391287,1770093348190,-0.08,0.00017999,2]
[404391288,1770093348372,-0.16,0.00017999,2]
[404391289,1770093348580,-0.32,0.00017999,2]
[404391290,1770093353232,-0.64,0.00017999,2]
[404391291,1770093353416,-1.28,0.00017999,2]
[404391292,1770093353604,-2.56,0.00017999,2]
[404391293,1770093353733,-5.12,0.00017999,2]
[404391294,1770093353864,-10.24,0.00017999,2]
[404391295,1770093356362,-20.48,0.00017999,2]
[404391296,1770093356516,-12.86143345,0.00017999,2]
[404391297,1770093356549,-53.82143345,0.00017999,2]
[404391298,1770093356573,-9892.3671331,0.00017999,2]
[404391299,1770093373913,10000.0,0.00016,2]
[404391300,1770093389106,0.01,0.00016,2]
[404391301,1770093389138,9999.99,0.00016,2]
[404391302,1770093418579,0.02,0.00016,2]
[404391303,1770093418602,9999.98,0.00016,2]
[404391304,1770093423825,0.03,0.00013273,2]
[404391305,1770093423846,499.97,0.00013273,2]
[404391306,1770093423875,500.0,0.00013273,2]
[404391307,1770093423901,500.0,0.00013699,2]
[404391308,1770093423928,500.45251857,0.00013821,2]
[404391309,1770093423955,500.0,0.00013699,2]
[404391310,1770093423979,500.0,0.00013699,2]
[404391311,1770093426409,1000.0,0.00014247,2]
[404391312,1770093426464,500.0,0.00013699,2]
[404391313,1770093436285,5499.58748143,0.00016,2]
[404391314,1770093436308,4500.41251857,0.00016,2]
[404391315,1770093456647,5499.59748143,0.00016,2]
[404391316,1770093456670,4500.40251857,0.00016,2]
[404391317,1770093475715,6568.0,0.0001546,2]
[404391318,1770093479944,209.58,9.99e-05,2]
[404391319,1770093480870,209.58,9.99e-05,2]
[404391320,1770093481139,209.57,9.99e-05,2]
[404391325,1770093603869,500.0,0.00013699,2]
[404391326,1770093603963,1000.0,0.00014247,2]
[404391327,1770093603998,1503.44037452,0.00014795,2]
[404391329,1770093663698,500.0,0.00013699,2]
[404391330,1770093663725,500.0,0.00013273,2]
[404391331,1770093663751,500.0,0.00013699,2]
[404391332,1770093663776,686.01054941,0.00014247,2]
[404391333,1770093663802,1000.0,0.00013821,2]
[404391334,1770093663830,500.0,0.00013273,2]
[404391335,1770093663859,571.27962246,0.00014247,2]
[404391336,1770093663885,443.79931484,0.00014368,2]
[404391337,1770093663914,1000.0,0.00013821,2]
[404391338,1770093663940,678.9942128,0.00014368,2]
[404391339,1770093663965,160.39462294,0.00013699,2]
[404391340,1770093674624,-5000.0,0.0001773,2]
[404391341,1770093726842,-5000.0,0.0001773,2]
[404391342,1770093732739,-150.0,0.0001791,2]
[404391343,1770093732768,-300.0,0.00017996,2]
[404391344,1770093732798,-300.0,0.00017996,2]
[404391345,1770093732830,-300.0,0.00017997,2]
[404391346,1770093732858,-1200.0,0.00017997,2]
[404391347,1770093732886,-500.0,0.00017998,2]
[404391348,1770093732912,-500.0,0.00017998,2]
[404391349,1770093732939,-500.0,0.00017998,2]
[404391350,1770093732965,-500.0,0.00017998,2]
[404391351,1770093732995,-500.0,0.00017998,2]
[404391352,1770093733023,-0.01,0.00017998,2]
[404391353,1770093738767,-499.99,0.00017998,2]
[404391354,1770093738796,-500.0,0.00017998,2]
[404391355,1770093738824,-500.0,0.00017998,2]
[404391356,1770093738950,-555.78929148,0.00017998,2]
[404391357,1770093740119,5000.0,0.00017998,2]
[404391362,1770093816476,-5000.0,0.00017819,2]
[404391363,1770093822467,-4399.03484631,0.00017899,2]
[404391364,1770093828642,-5000.0,0.0001772,2]
[404391366,1770093909990,512.27493464,0.00013273,2]
[404391367,1770093917720,500.0,0.00013699,2]
[404391368,1770094053770,-5000.0,0.00017454,2]
[404391369,1770094070590,0.01,0.00017454,2]
[404391370,1770094070613,4999.99,0.00017454,2]
[404391371,1770094087831,-5000.0,0.00017454,2]
[404391372,1770094094307,0.01,0.00017454,2]
[404391373,1770094094329,4999.99,0.00017454,2]
[404391374,1770094102069,5000.0,0.00017454,2]
[404391384,1770094121482,-5000.0,0.00017454,2]
[404391393,1770094126307,0.01,0.00017454,2]
[404391394,1770094126331,4999.99,0.00017454,2]
[404391411,1770094155150,-1000.0,0.00016997,2]
[404391412,1770094170135,-5000.0,0.00017454,2]
[404391414,1770094186898,0.01,0.00017454,2]
[404391415,1770094186920,919.22640986,0.00017454,2]
[404391474,1770094238560,-150.0,0.00017542,2]
[404391476,1770094238575,-221.40472795,0.0001763,2]
[404391478,1770094238586,-348.59527205,0.00017897,2]
[404391700,1770094240835,-4702.50052586,0.00017897,2]
[404391701,1770094240848,-500.0,0.00017995,2]
[404391702,1770094240857,-500.0,0.00017995,2]
[404391703,1770094240866,-500.0,0.00017995,2]
[404391704,1770094240875,-500.0,0.00017995,2]
[404391705,1770094240884,-500.0,0.00017995,2]
[404391706,1770094240893,-500.0,0.00017995,2]
[404391707,1770094240903,-500.0,0.00017995,2]
[404391708,1770094240911,-500.0,0.00017995,2]
[404391710,1770094240920,-500.0,0.00017995,2]
[404391712,1770094240929,-500.0,0.00017995,2]
[404391714,1770094240938,-500.0,0.00017995,2]
[404391716,1770094240947,-453.41226771,0.00017995,2]
[404391718,1770094240956,-500.0,0.00017995,2]
[404391720,1770094240965,-500.0,0.00017995,2]
[404391722,1770094240974,-500.0,0.00017995,2]
[404391724,1770094240984,-500.0,0.00017995,2]
[404391726,1770094240992,-500.0,0.00017995,2]
[404391728,1770094241001,-500.0,0.00017995,2]
[404391730,1770094241010,-500.0,0.00017995,2]
[404391732,1770094241019,-500.0,0.00017995,2]
[404391734,1770094241027,-500.0,0.00017995,2]
[404391736,1770094241036,-500.0,0.00017995,2]
[404391738,1770094241045,-500.0,0.00017995,2]
[404391740,1770094241054,-266.35025936,0.00017995,2]
[404391742,1770094241063,-500.0,0.00017995,2]
[404391744,1770094241071,-500.0,0.00017995,2]
[404391746,1770094241080,-500.0,0.00017995,2]
[404391748,1770094241089,-500.0,0.00017995,2]
[404391750,1770094241098,-500.0,0.00017995,2]
[404391752,1770094241106,-500.0,0.00017995,2]
[404391754,1770094241115,-500.0,0.00017995,2]
[404391756,1770094241124,-500.0,0.00017995,2]
[404391758,1770094241133,-500.0,0.00017995,2]
[404391760,1770094241142,-500.0,0.00017995,2]
[404391762,1770094241151,-500.0,0.00017995,2]
[404391764,1770094241160,-500.0,0.00017995,2]
[404391766,1770094241169,-500.0,0.00017995,2]
[404391768,1770094241179,-500.0,0.00017995,2]
[404391770,1770094241189,-500.0,0.00017995,2]
[404391772,1770094241200,-500.0,0.00017995,2]
[404391775,1770094241215,-500.0,0.00017995,2]
[404391777,1770094241224,-350.0,0.00017995,2]
[404391779,1770094241233,-500.0,0.00017995,2]
[404391780,1770094241242,-500.0,0.00017995,2]
[404391783,1770094241253,-500.0,0.00017995,2]
[404391785,1770094241263,-500.0,0.00017995,2]
[404391786,1770094241273,-500.0,0.00017995,2]
[404391789,1770094241283,-500.0,0.00017995,2]
[404391791,1770094241294,-500.0,0.00017995,2]
[404391792,1770094241305,-500.0,0.00017995,2]
[404391794,1770094241314,-500.0,0.00017995,2]
[404391797,1770094241325,-500.0,0.00017995,2]
[404391799,1770094241334,-500.0,0.00017995,2]
[404391801,1770094241344,-500.0,0.00017995,2]
[404391803,1770094241353,-500.0,0.00017995,2]
[404391805,1770094241362,-500.0,0.00017995,2]
[404391807,1770094241370,-500.0,0.00017995,2]
[404391809,1770094241380,-203.691706,0.00017995,2]
[404391811,1770094241388,-500.0,0.00017995,2]
[404391813,1770094241397,-291.08709115,0.00017995,2]
[404391815,1770094241406,-500.0,0.00017995,2]
[404391817,1770094241416,-500.0,0.00017995,2]
[404391819,1770094241425,-500.0,0.00017995,2]
[404391821,1770094241434,-500.0,0.00017995,2]
[404391823,1770094241443,-500.0,0.00017995,2]
[404391825,1770094241452,-500.0,0.00017995,2]
[404391827,1770094241462,-500.0,0.00017995,2]
[404391829,1770094241471,-500.0,0.00017995,2]
[404391831,1770094241480,-500.0,0.00017995,2]
[404391833,1770094241489,-500.0,0.00017995,2]
[404391835,1770094241499,-500.0,0.00017995,2]
[404391837,1770094241508,-500.0,0.00017995,2]
[404391839,1770094241518,-500.0,0.00017995,2]
[404391841,1770094241527,-500.0,0.00017995,2]
[404391843,1770094241537,-300.0,0.00017995,2]
[404391845,1770094241547,-195.18691316,0.00017995,2]
[404391847,1770094241556,-188.64473043,0.00017995,2]
[404391849,1770094241567,-500.0,0.00017995,2]
[404391850,1770094241579,-5117.26127425,0.00017996,2]
[404391853,1770094241591,-1023.59729684,0.00017996,2]
[404392007,1770094244860,-11491.5351935,0.00017996,2]
[404392008,1770094245557,-2478.35134602,0.00017996,2]
[404392009,1770094245639,-4366.76284439,0.00017996,2]
[404392021,1770094246746,-1155.11275136,0.00017996,2]
[404392076,1770094624176,530.78728917,0.00013273,2]
[404392096,1770094846835,-500.02961536,0.00015342,2]
[404392097,1770094848441,-500.0,0.00015342,2]
[404392098,1770094850473,-500.0,0.00015342,2]
[404392099,1770094851988,-500.0075863,0.00015342,2]
[404392100,1770094868045,-2580.24126496,0.00015342,2]
[404392101,1770094868058,-265.96153338,0.00015342,2]
[404392105,1770094897157,-2026.16823325,0.00017894,2]
[404392189,1770095283850,220.06,9.99e-05,2]
[404392190,1770095284201,220.05,9.99e-05,2]
[404392201,1770095431582,-300.0,0.00017729,2]
[404392202,1770095431593,-183.0,0.00017729,2]
[404392203,1770095431603,-300.0,0.00017729,2]
[404392205,1770095431612,-300.0,0.00017729,2]
[404392207,1770095431621,-199.66666667,0.00017729,2]
[404392243,1770095437777,-100.33333333,0.00017729,2]
[404392245,1770095437787,-1200.0,0.00017729,2]
[404392248,1770095437797,-150.0,0.00017729,2]
[404392249,1770095437807,-251.81669548,0.0001773,2]
[404392251,1770095437816,-500.0,0.0001773,2]
[404392253,1770095437825,-500.0,0.0001773,2]
[404392255,1770095437835,-383.71247419,0.0001773,2]
[404392257,1770095437843,-500.0,0.0001773,2]
[404392259,1770095437852,-500.0,0.0001773,2]
[404392261,1770095437862,-500.0,0.0001773,2]
[404392263,1770095437871,-500.0,0.0001773,2]
[404392265,1770095437881,-310.12078791,0.0001773,2]
[404392267,1770095437890,-500.0,0.0001773,2]
[404392269,1770095437899,-500.0,0.0001773,2]
[404392271,1770095437908,-500.0,0.0001773,2]
[404392273,1770095437917,-500.0,0.0001773,2]
[404392275,1770095437926,-500.0,0.0001773,2]
[404392276,1770095437935,-500.0,0.0001773,2]
[404392278,1770095437944,-500.0,0.0001773,2]
[404392280,1770095437955,-500.0,0.0001773,2]
[404392282,1770095437964,-500.0,0.0001773,2]
[404392284,1770095437973,-500.0,0.0001773,2]
[404392286,1770095437982,-500.0,0.0001773,2]
[404392288,1770095437992,-500.0,0.0001773,2]
[404392290,1770095438002,-500.0,0.0001773,2]
[404392292,1770095438011,-500.0,0.0001773,2]
[404392294,1770095438022,-500.0,0.0001773,2]
[404392296,1770095438031,-500.0,0.0001773,2]
[404392298,1770095438041,-500.0,0.0001773,2]
[404392300,1770095438051,-500.0,0.0001773,2]
[404392302,1770095438061,-500.0,0.0001773,2]
[404392304,1770095438070,-500.0,0.0001773,2]
[404392306,1770095438080,-500.0,0.0001773,2]
[404392308,1770095438089,-500.0,0.0001773,2]
[404392310,1770095438098,-513.95893905,0.0001773,2]
[404392312,1770095438108,-500.0,0.0001773,2]
[404392315,1770095438118,-500.0,0.0001773,2]
[404392316,1770095438128,-500.0,0.0001773,2]
[404392319,1770095438137,-500.0,0.0001773,2]
[404392321,1770095438147,-500.0,0.0001773,2]
[404392323,1770095438163,-568.80753128,0.0001773,2]
[404392324,1770095438173,-500.0,0.0001773,2]
[404392326,1770095438182,-500.0,0.0001773,2]
[404392329,1770095438192,-500.0,0.0001773,2]
[404392330,1770095438201,-647.87898529,0.0001773,2]
[404392332,1770095438210,-50000.0,0.00017731,2]
[404392334,1770095438219,-3229.5441416,0.00017732,2]
[404392336,1770095438228,-37386.0289442,0.00017732,2]
[404392338,1770095438237,-500.0,0.00017732,2]
[404392340,1770095438247,-150.06374012,0.00017866,2]
[404392342,1770095438257,-151.80867816,0.000179,2]
[404392344,1770095438266,-151.80867816,0.000179,2]
[404392346,1770095438275,-500.0,0.00017992,2]
[404392348,1770095438284,-500.0,0.00017992,2]
[404392350,1770095438293,-500.0,0.00017992,2]
[404392352,1770095438302,-508.34717865,0.00017992,2]
[404392354,1770095438312,-186.52448351,0.00017994,2]
[404392356,1770095438321,-500.0,0.00017994,2]
[404392358,1770095438330,-500.0,0.00017994,2]
[404392360,1770095438339,-500.0,0.00017995,2]
[404392362,1770095438349,-500.0,0.00017995,2]
[404392364,1770095438358,-33155.9525666,0.00017996,2]
[404392366,1770095438367,-186.8765602,0.00017996,2]
[404392368,1770095438376,-1092.0024328,0.00017996,2]
[404392370,1770095438385,-500.0,0.00017997,2]
[404392371,1770095438394,-500.0,0.00017997,2]
[404392373,1770095438405,-500.0,0.00017998,2]
[404392375,1770095438414,-500.0,0.00017998,2]
[404392377,1770095438423,-500.0,0.00017998,2]
[404392379,1770095438432,-500.0,0.00017998,2]
[404392380,1770095438441,-500.0,0.00017999,2]
[404392382,1770095438453,-720.91625547,0.00017999,2]
[404392384,1770095438463,-201.98138787,0.00017999,2]
[404392386,1770095438472,-167.56954872,0.00017999,2]
[404392388,1770095438481,-1297.64925985,0.00017999,2]
[404392390,1770095438490,-2181.23308615,0.00018,2]
[404392392,1770095438500,-503.78410191,0.00018006,2]
[404392394,1770095438509,-280.82465426,0.00018055,2]
[404392396,1770095438518,-807.92555149,0.00018424,2]
[404392398,1770095438527,-500.0,0.00018536,2]
[404392400,1770095438536,-541.38278376,0.00018536,2]
[404392402,1770095438545,-670.27819488,0.00018685,2]
[404392404,1770095438555,-10000.0,0.00018747,2]
[404392406,1770095438564,-2306.9320175,0.00018981,2]
[404392408,1770095438573,-407.97877784,0.0001904,2]
[404392410,1770095438583,-1026.95,0.00019126,2]
[404392412,1770095438593,-1817.83249086,0.00019226,2]
[404392414,1770095438602,-195.0,0.0001935,2]
[404392416,1770095438611,-420.0,0.0001935,2]
[404392418,1770095438620,-266.0,0.0001935,2]
[404392420,1770095438629,-1680.0,0.00019445,2]
[404392422,1770095438638,-268.07447227,0.00019717,3]
[404392424,1770095438648,-598.05,0.00019717,3]
[404392426,1770095438657,-177.0,0.00019729,2]
[404392428,1770095438667,-186.8765602,0.00019819,2]
[404392430,1770095438676,-1092.0024328,0.00019819,2]
[404392432,1770095438685,-500.0,0.00019833,2]
[404392434,1770095438694,-3231.70220597,0.00020028,2]
[404392436,1770095438703,-151.0,0.00020089,2]
[404392438,1770095438712,-154.11907,0.00020089,2]
[404392440,1770095438722,-1508.12593849,0.00020241,2]
[404392442,1770095438731,-216.49233793,0.00020252,2]
[404392444,1770095438740,-720.6087015,0.00020335,2]
[404392446,1770095438750,-8341.9506256,0.00020335,2]
[404392448,1770095438760,-7398.093006,0.00020638,2]
[404392450,1770095438769,-500.0,0.00020642,2]
[404392451,1770095438779,-2465.71464238,0.0002083,2]
[404392559,1770095440053,-269.247383,0.0002083,2]
[404392944,1770095445869,-150.06379822,0.00017994,2]
[404392945,1770095445881,-2314.57267144,0.0002083,2]
[404392946,1770095445890,-250.89522444,0.00020869,2]
[404392947,1770095445901,-160.7895349,0.00020916,2]
[404392948,1770095445912,-1861.340779,0.00020916,2]
[404392949,1770095445921,-166.3205814,0.00021052,2]
[404392950,1770095445930,-587.0,0.00021118,2]
[404392951,1770095445939,-1650.7376772,0.00021227,2]
[404392952,1770095445952,-220.84347311,0.00021245,2]
[404392953,1770095445962,-238.0,0.00021327,2]
[404392954,1770095445971,-186.8765602,0.00021642,2]
[404392955,1770095445980,-1092.0024328,0.00021642,2]
[404392956,1770095445990,-734.36180011,0.00021727,2]
[404392957,1770095445999,-204.0,0.00021729,2]
[404392958,1770095446010,-500.0,0.00022176,2]
[404392959,1770095446019,-420.0,0.00023049,2]
[404392960,1770095446028,-186.8765602,0.00023466,2]
[404392961,1770095446037,-1092.0024328,0.00023466,2]
[404392962,1770095446046,-231.0,0.00023729,2]
[404392963,1770095446055,-151.0,0.00024074,2]
[404392964,1770095446065,-500.0,0.00024265,2]
[404392965,1770095446074,-805.16847558,0.000249,2]
[404392966,1770095446083,-258.0,0.00025729,2]
[404392967,1770095446092,-407.10565015,0.00026734,5]
[404392968,1770095446101,-187.2232554,0.0002685,2]
[404392969,1770095446110,-342.26932519,0.00027397,2]
[404392970,1770095446119,-285.0,0.00027729,2]
[404392971,1770095446128,-325.88494,0.00028332,2]
[404392972,1770095446137,-220.79752302,0.00028357,5]
[404392973,1770095446146,-56.99447412,0.00029234,5]
[404392974,1770095446168,-316.41649506,0.00029234,5]
[404392975,1770095446177,-325.88494,0.00029525,2]
[404392976,1770095446186,-237.57941045,0.00029729,2]
[404392977,1770095446195,-150.159629,0.00030137,2]
[404392978,1770095446204,-325.88494,0.00030718,2]
[404392979,1770095446213,-325.88494,0.0003191,2]
[404392980,1770095446222,-268.38949186,0.0003221,2]
[404392981,1770095446231,-1613.33811615,0.0003222,30]
[404393003,1770095597980,508.26594532,0.00013273,2]
[404393010,1770095651518,506.33300735,0.00013699,2]
[404393011,1770095654217,500.0,0.00013699,2]
[404393012,1770095656510,500.0,0.00013699,2]
[404393014,1770095713361,502.63201846,0.00013699,2]
[404393017,1770095823693,343.51062108,0.00013699,2]
[404393018,1770095824860,647.852918,0.0002,120]
[404393019,1770095882870,-584.22952258,0.00017731,2]
[404393039,1770095889659,10000.0,0.00030137,120]
[404393049,1770095896862,10000.0,0.00030137,120]
[404393050,1770095903532,10000.0,0.00030137,120]
[404393052,1770095934792,7232.03,0.00030137,120]
[404393054,1770095947470,619.12998309,0.00013273,2]
[404393055,1770095952890,7232.0,0.00030137,120]
[404393059,1770096010858,-150.10285153,0.00017808,2]
[404393094,1770096504507,10000.01,0.00015,2]
[404393095,1770096504530,10000.01,0.00015,2]
[404393096,1770096504552,10000.01,0.00015,2]
[404393097,1770096504574,5387.41645541,0.00015,2]
[404393098,1770096507844,-2142.92227158,0.000176,2]
[404393099,1770096516044,507.3792008,0.000135,2]
[404393100,1770096518374,5206.78625604,0.0001747,2]
[404393101,1770096518396,10000.01,0.0001747,2]
[404393102,1770096518419,10000.01,0.0001747,2]
[404393103,1770096518442,10000.01,0.0001747,2]
[404393104,1770096518465,10000.01,0.0001747,2]
[404393105,1770096518487,10000.01,0.0001747,2]
[404393106,1770096518515,10000.01,0.0001747,2]
[404393107,1770096518538,6042.62018068,0.0001747,2]
[404393133,1770096631813,-300.0,0.00017998,2]
[404393135,1770096631823,-410.33255992,0.00017999,2]
[404393158,1770096637839,-187.6667554,0.00017999,2]
[404393160,1770096637850,-500.0,0.00017999,2]
[404393162,1770096637859,-500.0,0.00017999,2]
[404393164,1770096637869,-500.0,0.00017999,2]
[404393167,1770096637879,-285.42305903,0.00017999,2]
[404393169,1770096637890,-279.32877101,0.00017999,2]
[404393171,1770096637900,-31537.19781536,0.00018,2]
[404393173,1770096637912,-6589.73407865,0.00018,2]
[404393175,1770096637924,-181118.31154686,0.00018,2]
[404393177,1770096637934,-300.0,0.00019638,2]
[404393179,1770096637943,-150.54310493,0.00019638,2]
[404393181,1770096637953,-975.0085055,0.00023444,2]
[404393184,1770096637963,-44804.55573838,0.00023453,2]
[404393185,1770096637973,-245.34363319,0.00023453,2]
[404393188,1770096637983,-10000.0,0.00023522,2]
[404393189,1770096637992,-250.0,0.00024852,2]
[404393191,1770096638002,-250.0,0.00024852,2]
[404393194,1770096638011,-250.0,0.00024852,2]
[404393195,1770096638020,-250.0,0.00024852,2]
[404393198,1770096638030,-250.0,0.00024852,2]
[404393199,1770096638040,-250.0,0.00024852,2]
[404393201,1770096638050,-500.0,0.00024852,2]
[404393203,1770096638061,-500.0,0.00024852,2]
[404393205,1770096638071,-256.88624489,0.00024852,2]
[404393207,1770096638081,-500.0,0.00024852,2]
[404393210,1770096638091,-500.0,0.00024852,2]
[404393212,1770096638103,-500.0,0.00024852,2]
[404393213,1770096638113,-500.0,0.00024852,2]
[404393216,1770096638123,-500.0,0.00024852,2]
[404393218,1770096638133,-500.0,0.00024852,2]
[404393219,1770096638143,-500.0,0.00024852,2]
[404393221,1770096638153,-500.0,0.00024852,2]
[404393223,1770096638163,-500.0,0.00024852,2]
[404393225,1770096638173,-44945.4706631,0.00024867,2]
[404393227,1770096638183,-858.84637396,0.000249,2]
[404393229,1770096638193,-187.5806616,0.00027285,2]
[404393231,1770096638203,-389.61513093,0.00027397,2]
[404393233,1770096638212,-214.71159349,0.00028226,2]
[404393235,1770096638223,-441.61853974,0.00028236,2]
[404393237,1770096638233,-151.0,0.000285,20]
[404393239,1770096638242,-150.54310493,0.00030081,2]
[404393241,1770096638252,-398.876,0.00030137,120]
[404393243,1770096638262,-800.0,0.00030865,2]
[404393246,1770096638271,-151.0,0.00032,16]
[404393248,1770096638281,-192.74033012,0.00032117,2]
[404393249,1770096638291,-10152.874,0.0003222,30]
[404393251,1770096638300,-194.833,0.00032772,33]
[404393254,1770096638312,-214.71159349,0.00032867,2]
[404393256,1770096638322,-162.43,0.00032877,10]
[404393258,1770096638331,-812.16,0.00032877,10]
[404393260,1770096638341,-1493.64387671,0.00033516,5]
[404393262,1770096638352,-756.646675,0.00033604,2]
[404393264,1770096638362,-740.91124423,0.000342,7]
[404393265,1770096638372,-740.91124423,0.00034225,2]
[404393267,1770096638381,-15750.84742112,0.000344,10]
[404393269,1770096638393,-151.0,0.000344,31]
[404393272,1770096638402,-508.6493,0.000344,10]
[404393273,1770096638411,-216.9907,0.000344,11]
[404393276,1770096638421,-151.0,0.000344,31]
[404393278,1770096638430,-151.0,0.000344,31]
[404393279,1770096638440,-756.646675,0.00035019,2]
[404393281,1770096638449,-740.91124423,0.000352,7]
[404393284,1770096638458,-151.0,0.000355,10]
[404393285,1770096638468,-756.646675,0.00036434,2]
[404393288,1770096638478,-161.12,0.00037253,60]
[404393290,1770096638487,-161.12,0.00037353,60]
[404393292,1770096638496,-161.12,0.00037453,60]
[404393294,1770096638506,-161.12,0.00037553,60]
[404393296,1770096638515,-1626.79417799,0.00037555,2]
[404393298,1770096638525,-161.12,0.00037653,60]
[404393300,1770096638534,-161.1663563,0.00037753,60]
[404393302,1770096638543,-756.646675,0.00037848,2]
[404393304,1770096638552,-537.03446464,0.00038124,2]
[404393306,1770096638562,-209.47509161,0.00038864,11]
[404393308,1770096638571,-151.0,0.00039,12]
[404393310,1770096638580,-756.646675,0.00039263,2]
[404393312,1770096638589,-254.163896,0.00039865,120]
[404393314,1770096638599,-16452.6,0.00039964,120]
[404393316,1770096638609,-28.56295972,0.00039964,2]
[404393467,1770096640033,-153.04704028,0.00039964,2]
[404393470,1770096640042,-150.54295972,0.00039964,120]
[404393615,1770096644400,-24.02733721,0.00039964,120]
[404393616,1770096644409,-151.0,0.00039964,120]
[404393617,1770096644418,-151.0,0.00039964,120]
[404393618,1770096644428,-151.0,0.00039964,120]
[404393619,1770096644437,-151.0,0.00039964,120]
[404393620,1770096644446,-151.0,0.00039964,120]
[404393621,1770096644455,-26.63660637,0.00039964,120]
[404393622,1770096645188,-179.39226163,0.00039964,120]
[404393623,1770096645197,-151.0,0.00039964,120]